fUSD/lending_fUSD_20260111
["ID","MTS","AMOUNT","RATE_DAILY","PERIOD"]
[401278603,1768097451534,-3691.35751438,0.0002421,2]
[401278604,1768097451544,-150.0,0.00024222,4]
[401278605,1768097451553,-1000.0,0.0002425,2]
[401278606,1768097451562,-834.0,0.00024264,3]
[401278607,1768097451572,-209.1,0.00024272,2]
[401278608,1768097451581,-165.23658681,0.00024281,2]
[401278609,1768097451590,-842.0,0.000243,3]
[401278610,1768097451599,-172.29262228,0.00024364,2]
[401278611,1768097451608,-1000.0,0.00024384,2]
[401278612,1768097451617,-501.0,0.00024397,2]
[401278613,1768097451628,-1000.0,0.000244,2]
[401278614,1768097451637,-6549.52850959,0.00024402,2]
[401278615,1768097451647,-150.0,0.00024413,4]
[401278616,1768097451657,-500.0,0.0002457,2]
[401278617,1768097451666,-163.0,0.00024601,3]
[401278618,1768097451675,-834.0,0.00024601,3]
[401278619,1768097451684,-150.0,0.00024604,4]
[401278620,1768097451693,-166.66,0.00024614,2]
[401278621,1768097451702,-600.0,0.00024658,5]
[401278622,1768097451712,-998.6,0.00024658,2]
[401278623,1768097451721,-1000.0,0.00024658,2]
[401278624,1768097451730,-197.382562,0.00024658,2]
[401278625,1768097451740,-1000.0,0.00024658,2]
[401278626,1768097451751,-158.29808247,0.00024795,4]
[401278627,1768097451761,-155.3577338,0.00024795,4]
[401278628,1768097451770,-157.46483919,0.00024795,4]
[401278629,1768097451780,-155.84220397,0.00024795,4]
[401278630,1768097451790,-157.21321189,0.00024795,4]
[401278631,1768097451799,-156.22128885,0.00024795,4]
[401278632,1768097451808,-152.06553308,0.00024795,4]
[401278633,1768097451818,-152.68088658,0.00024795,4]
[401278634,1768097451828,-151.98869863,0.00024795,4]
[401278635,1768097451837,-249.53007134,0.00024799,2]
[401278636,1768097451847,-30000.0,0.000248,2]
[401278637,1768097451857,-146907.29,0.000248,2]
[401278638,1768097451866,-4040.21,0.000248,7]
[401278639,1768097451876,-800.0,0.000248,9]
[401278640,1768097451885,-800.0,0.000248,9]
[401278641,1768097451894,-800.0,0.000248,9]
[401278642,1768097451904,-800.0,0.000248,9]
[401278643,1768097451914,-800.0,0.000248,9]
[401278644,1768097451923,-800.0,0.000248,9]
[401278645,1768097451933,-800.0,0.000248,9]
[401278646,1768097451943,-800.0,0.000248,9]
[401278647,1768097451952,-10181.65249045,0.000248,2]
[401278648,1768097451961,-614.0,0.0002486,2]
[401278649,1768097451970,-1330.0,0.0002486,2]
[401278650,1768097451980,-1405.0,0.0002486,2]
[401278651,1768097451989,-3468.0,0.0002486,2]
[401278652,1768097451998,-1267.0,0.0002486,2]
[401278653,1768097452008,-506.0,0.0002486,2]
[401278654,1768097452017,-168.0,0.00024877,2]
[401278655,1768097452026,-500.0,0.00024899,2]
[401278656,1768097452035,-500.0,0.00024899,2]
[401278657,1768097452044,-500.0,0.00024899,2]
[401278658,1768097452052,-500.0,0.00024899,2]
[401278659,1768097452062,-150.0,0.00024899,2]
[401278660,1768097452071,-2000.0,0.000249,2]
[401278661,1768097452081,-43976.5319372,0.000249,3]
[401278662,1768097452091,-1000.0,0.00024932,2]
[401278663,1768097452100,-551.91493791,0.0002497,2]
[401278664,1768097452110,-150.0,0.00024973,2]
[401278665,1768097452119,-150.0,0.00024973,2]
[401278666,1768097452128,-501.0,0.00024983,2]
[401278667,1768097452138,-1710.4582591,0.00025,2]
[401278668,1768097452147,-151.0,0.00025,2]
[401278669,1768097452156,-99000.0,0.00025,2]
[401278670,1768097452165,-200.0,0.00025,2]
[401278671,1768097452174,-858.68,0.00025,7]
[401278672,1768097452184,-219.81,0.00025,5]
[401278673,1768097452193,-250.0,0.00025,7]
[401278674,1768097452202,-7341.1611811,0.00025,5]
[401278675,1768097452212,-416.78677424,0.00025,3]
[401278676,1768097452221,-150.0,0.00025,2]
[401278677,1768097452231,-3000.0,0.00025,7]
[401278678,1768097452240,-450.0,0.00025,2]
[401278679,1768097452249,-150.0,0.00025,2]
[401278680,1768097452259,-152.17,0.00025,2]
[401278681,1768097452272,-150.0,0.00025,2]
[401278682,1768097452281,-150.0,0.00025,2]
[401278683,1768097452291,-150.0,0.00025,2]
[401278684,1768097452300,-150.0,0.00025,2]
[401278685,1768097452311,-150.0,0.00025,2]
[401278686,1768097452321,-150.0,0.00025,2]
[401278687,1768097452331,-150.0,0.00025,2]
[401278688,1768097452344,-150.0,0.00025,2]
[401278689,1768097452354,-150.0,0.00025,2]
[401278690,1768097452364,-150.0,0.00025,2]
[401278691,1768097452373,-150.0,0.00025,2]
[401278692,1768097452383,-294.194,0.00025,2]
[401278693,1768097452393,-209.1,0.00025,2]
[401278694,1768097452403,-500.0,0.00025016,7]
[401278695,1768097452413,-150.0,0.00025028,2]
[401278696,1768097452422,-150.0,0.00025083,2]
[401278697,1768097452434,-957.56055746,0.000251,2]
[401278698,1768097452444,-333.0,0.00025131,7]
[401278699,1768097452453,-253.52103856,0.00025137,2]
[401278700,1768097452463,-150.0,0.0002514,2]
[401278701,1768097452472,-383.92,0.000252,4]
[401278702,1768097452481,-600.0,0.00025205,5]
[401278703,1768097452491,-1000.0,0.00025205,2]
[401278704,1768097452500,-361.68810823,0.00025275,2]
[401278705,1768097452509,-1000.0,0.00025275,2]
[401278706,1768097452519,-283.92,0.00025299,2]
[401278707,1768097452529,-500.0,0.00025302,7]
[401278708,1768097452538,-1300.0,0.00025304,7]
[401278709,1768097452548,-333.0,0.00025315,7]
[401278710,1768097452557,-259.0,0.00025373,7]
[401278711,1768097452567,-171.0,0.00025373,7]
[401278712,1768097452576,-1000.0,0.000254,2]
[401278713,1768097452585,-1000.0,0.00025479,2]
[401278714,1768097452595,-151.0,0.000255,2]
[401278715,1768097452603,-501.0,0.00025568,3]
[401278716,1768097452612,-1000.0,0.0002559,2]
[401278717,1768097452622,-500.0,0.00025638,2]
[401278718,1768097452631,-649.16,0.00025638,2]
[401278719,1768097452640,-648.66,0.00025638,2]
[401278720,1768097452649,-1000.0,0.00025649,2]
[401278721,1768097452659,-1300.0,0.00025663,7]
[401278722,1768097452668,-4040.21,0.000257,7]
[401278723,1768097452677,-600.0,0.00025753,5]
[401278724,1768097452687,-1000.0,0.00025753,2]
[401278725,1768097452696,-500.0,0.00025799,2]
[401278726,1768097452705,-500.0,0.00025799,2]
[401278727,1768097452715,-500.0,0.00025799,2]
[401278728,1768097452724,-500.0,0.00025799,2]
[401278729,1768097452733,-293.51,0.000258,3]
[401278730,1768097452743,-1000.0,0.0002588,2]
[401278731,1768097452753,-1300.0,0.00025887,7]
[401278732,1768097452763,-3280.79,0.000259,14]
[401278733,1768097452772,-1000.0,0.00025924,2]
[401278734,1768097452781,-1000.0,0.00025972,2]
[401278735,1768097452791,-150.0,0.00025983,2]
[401278736,1768097452800,-598.8481984,0.0002599,2]
[401278737,1768097452809,-640.29,0.00025998,2]
[401278738,1768097452818,-69272.51501719,0.00025999,14]
[401278739,1768097452827,-4507.40759864,0.00026,2]
[401278740,1768097452836,-215.82046444,0.00026,2]
[401278741,1768097452845,-12958.08376126,0.00026,10]
[401278742,1768097452854,-162.45159971,0.00026,2]
[401278743,1768097452863,-150.0,0.00026,2]
[401278744,1768097452873,-1000.0,0.00026027,2]
[401278745,1768097452882,-400.0,0.00026073,2]
[401278746,1768097452891,-400.0,0.00026073,2]
[401278747,1768097452900,-400.0,0.00026073,2]
[401278748,1768097452910,-487.87783844,0.00026073,2]
[401278749,1768097452919,-3000.0,0.00026096,7]
[401278750,1768097452929,-333.0,0.00026098,7]
[401278751,1768097452939,-358.75,0.000261,14]
[401278752,1768097452953,-430.5,0.000261,2]
[401278753,1768097452962,-430.5,0.000261,5]
[401278754,1768097452973,-223.75,0.000261,3]
[401278755,1768097452983,-501.0,0.00026153,3]
[401278756,1768097452993,-640.29,0.00026199,2]
[401278757,1768097453002,-500.0,0.00026199,2]
[401278758,1768097453012,-649.16,0.00026199,2]
[401278759,1768097453021,-648.66,0.00026199,2]
[401278760,1768097453031,-1300.0,0.00026202,7]
[401278761,1768097453041,-150.0,0.00026276,2]
[401278762,1768097453051,-500.0,0.00026299,2]
[401278763,1768097453059,-500.0,0.00026299,2]
[401278764,1768097453069,-500.0,0.00026299,2]
[401278765,1768097453079,-29438.49418773,0.000263,2]
[401278766,1768097453088,-600.0,0.00026301,5]
[401278767,1768097453097,-1000.0,0.00026301,2]
[401278768,1768097453108,-150.0,0.0002637,2]
[401278769,1768097453117,-27390.74556366,0.000264,2]
[401278770,1768097453127,-1000.0,0.00026407,2]
[401278771,1768097453136,-333.0,0.00026466,7]
[401278772,1768097453146,-151.0,0.000265,2]
[401278773,1768097453156,-1000.0,0.00026528,2]
[401278774,1768097453166,-1000.0,0.00026575,2]
[401278775,1768097453175,-4040.21,0.000266,7]
[401278776,1768097453185,-1000.0,0.00026648,2]
[401278777,1768097453194,-968.71,0.000267,3]
[401278778,1768097453203,-722.97,0.000267,3]
[401278779,1768097453212,-279.13,0.000267,3]
[401278780,1768097453222,-1925.12,0.000267,3]
[401278781,1768097453231,-500.0,0.00026715,7]
[401278782,1768097453242,-501.0,0.00026738,4]
[401278783,1768097453252,-1201.0,0.00026783,2]
[401278784,1768097453261,-914.0,0.00026783,2]
[401278785,1768097453274,-151.0,0.000268,2]
[401278786,1768097453284,-4703.214,0.00026802,2]
[401278787,1768097453294,-2437.0,0.00026802,2]
[401278788,1768097453304,-6555.0,0.00026803,2]
[401278789,1768097453315,-1000.0,0.00026822,2]
[401278790,1768097453325,-600.0,0.00026849,5]
[401278791,1768097453335,-1000.0,0.00026849,2]
[401278792,1768097453346,-1000.0,0.00026885,2]
[401278793,1768097453356,-1300.0,0.0002692,7]
[401278794,1768097453366,-1972.82095018,0.00027,14]
[401278795,1768097453376,-250.0,0.00027,2]
[401278796,1768097453394,-1030.92935063,0.00027,2]
[401278797,1768097453404,-530.0,0.00027,2]
[401278798,1768097453414,-500.0,0.00027,2]
[401278799,1768097453424,-465.46926393,0.00027,30]
[401278800,1768097453435,-200.0,0.00027,2]
[401278801,1768097453444,-2992.46222782,0.00027,30]
[401278802,1768097453454,-3900.72955,0.00027,2]
[401278803,1768097453465,-333.0,0.00027064,7]
[401278804,1768097453475,-252.0,0.00027064,7]
[401278805,1768097453484,-156.22398245,0.00027086,2]
[401278806,1768097453494,-177.70676389,0.00027086,2]
[401278807,1768097453504,-640.29,0.00027099,2]
[401278808,1768097453514,-459.26722753,0.00027099,2]
[401278809,1768097453523,-649.16,0.00027099,2]
[401278810,1768097453533,-648.66,0.00027099,2]
[401278811,1768097453543,-1000.0,0.00027103,2]
[401278812,1768097453552,-3675.47,0.00027123,2]
[401278813,1768097453562,-1000.0,0.00027123,2]
[401278814,1768097453576,-500.0,0.00027174,2]
[401278815,1768097453586,-500.0,0.00027174,2]
[401278816,1768097453596,-3000.0,0.00027192,7]
[401278817,1768097453605,-150.0,0.00027207,2]
[401278818,1768097453615,-3339.45386296,0.00027318,2]
[401278819,1768097453625,-1000.0,0.00027322,7]
[401278820,1768097453635,-501.0,0.00027324,5]
[401278821,1768097453646,-150.0,0.00027369,2]
[401278822,1768097453655,-4393.21953654,0.0002739,7]
[401278823,1768097453665,-4097.53902668,0.0002739,2]
[401278824,1768097453677,-8093.70671693,0.0002739,2]
[401278825,1768097453686,-271.60537758,0.00027397,23]
[401278826,1768097453696,-612.0,0.00027397,17]
[401278827,1768097453706,-409.8,0.00027397,7]
[401278828,1768097453718,-381.2,0.00027397,6]
[401278829,1768097453727,-337.4,0.00027397,3]
[401278830,1768097453737,-497.2,0.00027397,5]
[401278831,1768097453747,-490.4,0.00027397,3]
[401278832,1768097453756,-441.2,0.00027397,3]
[401278833,1768097453765,-363.4,0.00027397,2]
[401278834,1768097453774,-352.4,0.00027397,4]
[401278835,1768097453784,-452.4,0.00027397,7]
[401278836,1768097453793,-306.25156818,0.00027397,6]
[401278837,1768097453803,-388.2,0.00027397,3]
[401278838,1768097453812,-345.6,0.00027397,2]
[401278839,1768097453822,-153.12578409,0.00027397,5]
[401278840,1768097453831,-252.88,0.00027397,2]
[401278841,1768097453841,-794.0,0.00027397,45]
[401278842,1768097453851,-853.2,0.00027397,19]
[401278843,1768097453861,-494.2,0.00027397,4]
[401278844,1768097453871,-444.86837795,0.00027397,17]
[401278845,1768097453881,-379.0,0.00027397,4]
[401278846,1768097453891,-600.0,0.00027397,15]
[401278847,1768097453900,-174.4383518,0.00027397,2]
[401278848,1768097453910,-211.45782133,0.00027397,2]
[401278849,1768097453920,-160.1338338,0.00027397,2]
[401278850,1768097453930,-500.0,0.00027397,20]
[401278851,1768097453939,-998.6,0.00027397,2]
[401278852,1768097453951,-300.0,0.00027397,2]
[401278853,1768097453961,-1342.19,0.00027397,30]
[401278854,1768097453971,-39779.83,0.00027397,2]
[401278855,1768097453981,-517.73,0.00027397,2]
[401278856,1768097453992,-153.08567,0.00027397,7]
[401278857,1768097454002,-213.757805,0.00027397,7]
[401278858,1768097454011,-151.0,0.00027397,7]
[401278859,1768097454021,-151.0,0.00027397,7]
[401278860,1768097454031,-151.0,0.00027397,7]
[401278861,1768097454041,-260.066692,0.00027397,7]
[401278862,1768097454051,-150.0,0.00027397,5]
[401278863,1768097454061,-150.0,0.00027397,5]
[401278864,1768097454071,-158.83889179,0.00027397,5]
[401278865,1768097454081,-1000.0,0.00027397,2]
[401278866,1768097454090,-500.0,0.00027399,30]
[401278867,1768097454291,-300.0,0.000274,120]
[401278868,1768097454304,-500.0,0.00027475,7]
[401278869,1768097454315,-200.50735754,0.000275,2]
[401278870,1768097454325,-547.74050109,0.000275,2]
[401278871,1768097454335,-377.25,0.000275,3]
[401278872,1768097454347,-146907.29,0.000275,2]
[401278873,1768097454357,-4040.21,0.000275,7]
[401278874,1768097454366,-2171.491019,0.000275,2]
[401278875,1768097454378,-533.50662157,0.0002759,2]
[401278876,1768097454388,-640.29,0.00027609,30]
[401278877,1768097454398,-649.16,0.00027609,120]
[401278878,1768097454407,-648.66,0.00027609,120]
[401278879,1768097454417,-333.0,0.00027616,14]
[401278880,1768097454427,-5578.13,0.00027671,2]
[401278881,1768097454437,-1000.0,0.00027671,2]
[401278882,1768097454447,-151.0,0.000278,2]
[401278883,1768097454456,-1904.46,0.000278,3]
[401278884,1768097454466,-1635.19,0.000278,3]
[401278885,1768097454475,-160.1338338,0.00027808,20]
[401278886,1768097454484,-614.0,0.0002786,2]
[401278887,1768097454493,-1330.0,0.0002786,2]
[401278888,1768097454503,-1405.0,0.0002786,2]
[401278889,1768097454512,-3468.0,0.0002786,2]
[401278890,1768097454522,-1267.0,0.0002786,2]
[401278891,1768097454531,-506.0,0.0002786,2]
[401278892,1768097454541,-501.0,0.00027909,5]
[401278893,1768097454551,-168.0,0.0002791,14]
[401278894,1768097454559,-600.0,0.00027945,15]
[401278895,1768097454568,-467.75,0.00027945,14]
[401278896,1768097454577,-250.0,0.00027945,5]
[401278897,1768097454587,-250.0,0.00027945,5]
[401278898,1768097454596,-1000.0,0.00027945,2]
[401278899,1768097454605,-640.29,0.00027999,30]
[401278900,1768097454614,-649.16,0.00027999,120]
[401278901,1768097454624,-649.16,0.00027999,120]
[401278902,1768097454633,-648.66,0.00027999,120]
[401278903,1768097454643,-648.66,0.00027999,120]
[401278904,1768097454652,-1014.0,0.00028,12]
[401278905,1768097454664,-71089.27347703,0.00028,2]
[401278906,1768097454673,-50692.0732257,0.00028,2]
[401278907,1768097454683,-151.0,0.00028,2]
[401278908,1768097454694,-284.20846538,0.00028,7]
[401278909,1768097454703,-368.42196851,0.00028,120]
[401278910,1768097454713,-500.0,0.00028,120]
[401278911,1768097454722,-1500.0,0.00028,2]
[401278912,1768097454732,-333.0,0.00028031,14]
[401278913,1768097454741,-454.04310579,0.00028125,2]
[401278914,1768097454751,-155.4,0.00028169,120]
[401278915,1768097454762,-1377.43,0.000282,5]
[401278916,1768097454771,-14094.4375,0.000282,2]
[401278917,1768097454781,-753.4064,0.000282,3]
[401278918,1768097454790,-1377.43,0.000282,2]
[401278919,1768097454799,-160.1338338,0.00028218,38]
[401278920,1768097454809,-1000.0,0.00028219,2]
[401278921,1768097454819,-3000.0,0.00028288,14]
[401278922,1768097454828,-146907.29,0.000284,2]
[401278923,1768097454837,-4040.21,0.000284,7]
[401278924,1768097454846,-18970.0,0.00028463,7]
[401278925,1768097454856,-1314.21585588,0.00028478,4]
[401278926,1768097454866,-500.0,0.00028488,7]
[401278927,1768097454875,-600.0,0.00028493,15]
[401278928,1768097454884,-350.0,0.00028493,5]
[401278929,1768097454894,-350.0,0.00028493,5]
[401278930,1768097454903,-1000.0,0.00028493,2]
[401278931,1768097454913,-501.0,0.00028494,6]
[401278932,1768097454923,-1500.0,0.000285,2]
[401278933,1768097454933,-40000.0,0.000286,3]
[401278934,1768097454943,-2000.0,0.000286,2]
[401278935,1768097454952,-211.45782133,0.00028629,56]
[401278936,1768097454961,-160.1338338,0.00028629,56]
[401278937,1768097454971,-1298.30986929,0.00028646,15]
[401278938,1768097454980,-151.90588804,0.00028662,120]
[401278939,1768097454990,-640.29,0.00028699,30]
[401278940,1768097454999,-500.0,0.00028699,30]
[401278941,1768097455009,-957.56055746,0.000287,2]
[401278943,1768097455019,-252.0,0.00028756,14]
[401278944,1768097455028,-211.58334107,0.00028767,2]
[401278945,1768097455037,-500.0,0.00028767,120]
[401278946,1768097455047,-1000.0,0.00028767,2]
[401278947,1768097455057,-143684.56,0.000288,2]
[401278948,1768097455067,-205.0,0.0002882,30]
[401278949,1768097455077,-500.0,0.00028822,120]
[401278950,1768097455088,-152.0,0.00028833,3]
[401278951,1768097455099,-258.97104437,0.00028877,120]
[401278952,1768097455110,-640.29,0.00028899,30]
[401278953,1768097455121,-649.16,0.00028899,120]
[401278954,1768097455130,-649.16,0.00028899,120]
[401278955,1768097455140,-649.16,0.00028899,120]
[401278956,1768097455149,-649.16,0.00028899,120]
[401278957,1768097455164,-649.3677512,0.00028899,120]
[401278958,1768097455175,-648.66,0.00028899,120]
[401278959,1768097455186,-648.66,0.00028899,120]
[401278960,1768097455198,-648.66,0.00028899,120]
[401278961,1768097455207,-648.66,0.00028899,120]
[401278962,1768097455218,-648.85599333,0.00028899,120]
[401278963,1768097455227,-160.13383377,0.0002894,120]
[401278964,1768097455237,-252.0,0.00028997,14]
[401278965,1768097455246,-333.0,0.00028997,14]
[401278966,1768097455255,-1000.0,0.00029,12]
[401278967,1768097455267,-378.37,0.00029,5]
[401278968,1768097455276,-1500.0,0.00029,2]
[401278969,1768097455286,-160.1338338,0.00029039,74]
[401278970,1768097455295,-600.0,0.00029041,15]
[401278971,1768097455306,-450.0,0.00029041,5]
[401278972,1768097455315,-450.0,0.00029041,5]
[401278973,1768097455324,-1000.0,0.00029041,2]
[401278974,1768097455334,-501.0,0.0002908,6]
[401278975,1768097455345,-3000.0,0.0002911,14]
[401278976,1768097455356,-500.0,0.00029261,7]
[401278977,1768097455365,-146907.29,0.000293,2]
[401278978,1768097455375,-4040.21,0.000293,7]
[401278979,1768097455385,-500.0,0.00029304,30]
[401278980,1768097455394,-20068.0,0.00029304,2]
[401278981,1768097455404,-1000.0,0.00029315,2]
[401278982,1768097455413,-156.22398245,0.00029367,110]
[401278983,1768097455423,-177.70676389,0.00029367,110]
[401278984,1768097455432,-1300.0,0.00029394,7]
[401278985,1768097455442,-152.0,0.00029421,4]
[401278986,1768097455452,-160.1338338,0.00029449,92]
[401278987,1768097455462,-13236.05239257,0.000295,7]
[401278988,1768097455471,-1106.84529043,0.000295,2]
[401278989,1768097455481,-151.0,0.000295,2]
[401278990,1768097455491,-1500.0,0.000295,2]
[401278991,1768097455501,-243.74,0.00029589,15]
[401278992,1768097455512,-432.94280547,0.00029589,5]
[401278993,1768097455521,-550.0,0.00029589,5]
[401278994,1768097455533,-1000.0,0.00029589,2]
[401278995,1768097455543,-20068.0,0.00029606,2]
[401278996,1768097455556,-501.0,0.00029665,7]
[401278997,1768097455566,-143684.56,0.000297,2]
[401278998,1768097455576,-1201.0,0.00029783,2]
[401278999,1768097455586,-914.0,0.00029783,2]
[401279000,1768097455596,-2437.0,0.00029802,2]
[401279001,1768097455605,-6555.0,0.00029803,2]
[401279002,1768097455615,-174.4383518,0.0002986,30]
[401279003,1768097455624,-211.45782133,0.0002986,110]
[401279004,1768097455635,-1000.0,0.00029863,2]
[401279005,1768097455645,-1800.0,0.00029876,14]
[401279006,1768097455655,-1300.0,0.00029897,7]
[401279007,1768097455666,-78668.72747989,0.000299,2]
[401279008,1768097455675,-20068.0,0.00029909,2]
[401279009,1768097455684,-3000.0,0.00029932,14]
[401279010,1768097455693,-236.59737908,0.0002999,2]
[401279011,1768097455703,-666.52642717,0.0002999,2]
[401279012,1768097455713,-640.29,0.00029999,30]
[401279013,1768097455722,-640.29,0.00029999,30]
[401279014,1768097455731,-640.29,0.00029999,30]
[401279015,1768097455741,-640.29,0.00029999,30]
[401279016,1768097455750,-640.29,0.00029999,30]
[401279017,1768097455760,-640.3813734,0.00029999,30]
[401279018,1768097455769,-500.0,0.00029999,30]
[401279019,1768097455779,-500.0,0.00029999,30]
[401279020,1768097455788,-485.70359567,0.0003,7]
[401279021,1768097455798,-1000.0,0.0003,9]
[401279022,1768097455808,-6873.58292285,0.0003,21]
[401279023,1768097455819,-2000.0,0.0003,14]
[401279024,1768097455828,-526.0,0.0003,4]
[401279025,1768097455837,-400.0,0.0003,20]
[401279026,1768097455847,-816.92201128,0.0003,5]
[401279027,1768097455856,-537.09,0.0003,10]
[401279028,1768097455865,-1000.0,0.0003,20]
[401279029,1768097455875,-1000.0,0.0003,20]
[401279030,1768097455884,-1000.0,0.0003,20]
[401279031,1768097455893,-1000.0,0.0003,20]
[401279032,1768097455904,-1000.0,0.0003,20]
[401279033,1768097455913,-1000.0,0.0003,20]
[401279034,1768097455923,-1000.0,0.0003,20]
[401279035,1768097455932,-1000.0,0.0003,20]
[401279036,1768097455941,-1000.0,0.0003,20]
[401279037,1768097455950,-1000.0,0.0003,20]
[401279038,1768097455960,-1000.0,0.0003,20]
[401279039,1768097455970,-1000.0,0.0003,20]
[401279040,1768097455979,-1000.0,0.0003,20]
[401279041,1768097455988,-1000.0,0.0003,20]
[401279042,1768097455998,-1000.0,0.0003,20]
[401279043,1768097456007,-1000.0,0.0003,20]
[401279044,1768097456016,-1000.0,0.0003,20]
[401279045,1768097456026,-1000.0,0.0003,20]
[401279046,1768097456036,-1000.0,0.0003,20]
[401279047,1768097456046,-1000.0,0.0003,20]
[401279048,1768097456058,-1000.0,0.0003,20]
[401279049,1768097456067,-1000.0,0.0003,20]
[401279050,1768097456077,-1000.0,0.0003,20]
[401279051,1768097456086,-1000.0,0.0003,20]
[401279052,1768097456095,-1000.0,0.0003,20]
[401279053,1768097456105,-1000.0,0.0003,20]
[401279054,1768097456114,-1000.0,0.0003,20]
[401279055,1768097456124,-1000.0,0.0003,20]
[401279056,1768097456133,-1000.0,0.0003,20]
[401279057,1768097456143,-1000.0,0.0003,20]
[401279058,1768097456152,-1000.0,0.0003,20]
[401279059,1768097456161,-1047.88792592,0.0003,20]
[401279060,1768097456171,-101998.7914445,0.0003,5]
[401279061,1768097456181,-4704.69310991,0.0003,2]
[401279062,1768097456190,-19814.50748609,0.0003,2]
[401279063,1768097456199,-4140.15505571,0.0003,2]
[401279064,1768097456208,-1812.17301603,0.0003,2]
[401279065,1768097456217,-439.97012114,0.0003,2]
[401279066,1768097456226,-162.54884028,0.0003,2]
[401279067,1768097456235,-151.0,0.0003,2]
[401279068,1768097456245,-14091.96287191,0.0003,5]
[401279069,1768097456255,-5000.0,0.0003,7]
[401279070,1768097456266,-350.0,0.0003,14]
[401279071,1768097456276,-7492.35557845,0.0003,2]
[401279072,1768097456285,-259.0,0.0003,2]
[401279073,1768097456295,-7619.72444776,0.0003,7]
[401279074,1768097456305,-5036.30510493,0.0003,14]
[401279075,1768097456315,-1359.37398404,0.0003,3]
[401279076,1768097456325,-199.0,0.0003,2]
[401279077,1768097456335,-338.18402449,0.0003,7]
[401279078,1768097456347,-798.33761057,0.0003,7]
[401279079,1768097456357,-919.30792,0.0003,6]
[401279080,1768097456367,-250.0,0.0003,7]
[401279081,1768097456376,-16430.01315913,0.0003,7]
[401279082,1768097456386,-399.6995594,0.0003,5]
[401279083,1768097456396,-510.78316053,0.0003,30]
[401279084,1768097456407,-150.0,0.0003,2]
[401279085,1768097456417,-200.0,0.0003,30]
[401279086,1768097456427,-150.0,0.0003,2]
[401279087,1768097456436,-150.0,0.0003,5]
[401279088,1768097456445,-277.12373295,0.0003,30]
[401279089,1768097456455,-500.0,0.0003,120]
[401279090,1768097456465,-1500.0,0.0003,2]
[401279091,1768097456475,-152.0,0.00030009,5]
[401279092,1768097456485,-1504.41998746,0.0003013,5]
[401279093,1768097456494,-1070.46478405,0.0003013,2]
[401279094,1768097456505,-13808.9814689,0.0003013,2]
[401279095,1768097456515,-632.17078225,0.0003013,2]
[401279096,1768097456525,-5044.41676792,0.0003013,2]
[401279097,1768097456536,-201.1092787,0.0003013,2]
[401279098,1768097456547,-1220.84774287,0.0003013,2]
[401279099,1768097456556,-7707.5946789,0.0003013,2]
[401279100,1768097456566,-165.02295905,0.0003013,20]
[401279101,1768097456576,-196.71273102,0.0003013,30]
[401279102,1768097456586,-300.0,0.0003013,30]
[401279103,1768097456595,-500.0,0.00030136,2]